[Event "Early-Titled-Tuesday-Blitz-April-16-2024"]
[Site "Chess.com"]
[Date "2024.04.16"]
[Round "5"]
[White "BallottiLuca"]
[Black "Kotofeyca"]
[Result "1/2-1/2"]
[WhiteElo "2369"]
[BlackElo "2489"]
[TimeControl "180+1"]
[EndTime "8:57:04 PDT"]
[Termination "Game drawn by repetition"]

1. d4 {[%clk 0:03:00.9]} 1... d5 {[%clk 0:02:59.8]} 2. c4 {[%clk 0:03:00.4]}
2... c6 {[%clk 0:03:00.7]} 3. Nc3 {[%clk 0:02:57.3]} 3... Nf6 {[%clk 0:03:01.2]}
4. cxd5 {[%clk 0:02:53.8]} 4... cxd5 {[%clk 0:03:02.1]} 5. Bg5 {[%clk
0:02:50.3]} 5... Ne4 {[%clk 0:03:00.9]} 6. Nxe4 {[%clk 0:02:49.4]} 6... dxe4
{[%clk 0:03:01.8]} 7. a3 {[%clk 0:02:47.8]} 7... Nc6 {[%clk 0:02:52.9]} 8. d5
{[%clk 0:02:37.2]} 8... Ne5 {[%clk 0:01:52.9]} 9. Qd4 {[%clk 0:02:35.4]} 9... f6
{[%clk 0:01:39.7]} 10. Bf4 {[%clk 0:02:35.4]} 10... e6 {[%clk 0:01:17]} 11. Bxe5
{[%clk 0:02:19.5]} 11... fxe5 {[%clk 0:01:16.3]} 12. Qxe4 {[%clk 0:02:09.8]}
12... Qa5+ {[%clk 0:01:10.7]} 13. b4 {[%clk 0:02:07.6]} 13... Qxd5 {[%clk
0:01:10.6]} 14. Qd3 {[%clk 0:01:49]} 14... a5 {[%clk 0:00:54.6]} 15. b5 {[%clk
0:01:35.5]} 15... Qxd3 {[%clk 0:00:43.2]} 16. exd3 {[%clk 0:01:36.4]} 16... Bd7
{[%clk 0:00:40.8]} 17. Nf3 {[%clk 0:01:32.9]} 17... Bxb5 {[%clk 0:00:36.6]} 18.
Nxe5 {[%clk 0:01:32.4]} 18... Bd6 {[%clk 0:00:33.4]} 19. Nc4 {[%clk 0:01:24.1]}
19... Bc7 {[%clk 0:00:27.2]} 20. Be2 {[%clk 0:01:22.9]} 20... Bc6 {[%clk
0:00:24.9]} 21. O-O {[%clk 0:01:20.3]} 21... Ke7 {[%clk 0:00:20.2]} 22. a4
{[%clk 0:01:20]} 22... Rhd8 {[%clk 0:00:20]} 23. Rfe1 {[%clk 0:01:18.2]} 23...
Rd4 {[%clk 0:00:19.2]} 24. Bf1 {[%clk 0:01:05.3]} 24... Kf6 {[%clk 0:00:18.8]}
25. Re3 {[%clk 0:01:03.8]} 25... Rad8 {[%clk 0:00:18.1]} 26. Rae1 {[%clk
0:01:00.8]} 26... Re8 {[%clk 0:00:16.2]} 27. Ra1 {[%clk 0:00:50.6]} 27... Rd5
{[%clk 0:00:15.2]} 28. g3 {[%clk 0:00:48.3]} 28... Rd4 {[%clk 0:00:12.9]} 29.
Bg2 {[%clk 0:00:47]} 29... Bxg2 {[%clk 0:00:12.9]} 30. Kxg2 {[%clk 0:00:47.9]}
30... Red8 {[%clk 0:00:13.2]} 31. Rae1 {[%clk 0:00:47.2]} 31... e5 {[%clk
0:00:12.8]} 32. Nxe5 {[%clk 0:00:38.2]} 32... Bxe5 {[%clk 0:00:10.3]} 33. Rxe5
{[%clk 0:00:39.1]} 33... Rxd3 {[%clk 0:00:09.1]} 34. Rxa5 {[%clk 0:00:39.4]}
34... R8d7 {[%clk 0:00:08.6]} 35. Rb5 {[%clk 0:00:38.7]} 35... Ra3 {[%clk
0:00:08.5]} 36. a5 {[%clk 0:00:38]} 36... h6 {[%clk 0:00:08.7]} 37. Re2 {[%clk
0:00:35.5]} 37... Kf7 {[%clk 0:00:08.5]} 38. Rf5+ {[%clk 0:00:34.5]} 38... Kg6
{[%clk 0:00:08.4]} 39. Rb5 {[%clk 0:00:29.3]} 39... Rf7 {[%clk 0:00:08.5]} 40.
h4 {[%clk 0:00:26.9]} 40... Rc7 {[%clk 0:00:07.5]} 41. h5+ {[%clk 0:00:25.1]}
41... Kh7 {[%clk 0:00:07.6]} 42. Rbe5 {[%clk 0:00:15]} 42... Rf7 {[%clk
0:00:06.5]} 43. Re7 {[%clk 0:00:08.3]} 43... Rxe7 {[%clk 0:00:06.4]} 44. Rxe7
{[%clk 0:00:09.2]} 44... Rxa5 {[%clk 0:00:06.7]} 45. Rxb7 {[%clk 0:00:09.5]}
45... Rxh5 {[%clk 0:00:06.7]} 46. Rc7 {[%clk 0:00:08.4]} 46... Ra5 {[%clk
0:00:07.1]} 47. Rb7 {[%clk 0:00:08.6]} 47... Ra6 {[%clk 0:00:07.5]} 48. Rc7
{[%clk 0:00:08.9]} 48... Kg6 {[%clk 0:00:07.9]} 49. Rb7 {[%clk 0:00:09.2]} 49...
Kf6 {[%clk 0:00:08.4]} 50. Rc7 {[%clk 0:00:09.5]} 50... Re6 {[%clk 0:00:08.9]}
51. Ra7 {[%clk 0:00:09.2]} 51... h5 {[%clk 0:00:09.5]} 52. Rb7 {[%clk
0:00:09.3]} 52... g6 {[%clk 0:00:10.1]} 53. Rb5 {[%clk 0:00:09.3]} 53... Re5
{[%clk 0:00:09.7]} 54. Rb6+ {[%clk 0:00:09.4]} 54... Kf5 {[%clk 0:00:09.8]} 55.
Ra6 {[%clk 0:00:10]} 55... Re6 {[%clk 0:00:09.6]} 56. Ra5+ {[%clk 0:00:10.2]}
56... Kf6 {[%clk 0:00:10]} 57. Kf3 {[%clk 0:00:09.3]} 57... Kg7 {[%clk
0:00:09.7]} 58. Ra7+ {[%clk 0:00:09.1]} 58... Kf6 {[%clk 0:00:10.1]} 59. Ra5
{[%clk 0:00:10]} 59... Rd6 {[%clk 0:00:10.3]} 60. Rb5 {[%clk 0:00:09.8]} 60...
Re6 {[%clk 0:00:10.7]} 61. Ra5 {[%clk 0:00:09.5]} 1/2-1/2

[Event "Early-Titled-Tuesday-Blitz-April-16-2024"]
[Site "Chess.com"]
[Date "2024.04.16"]
[Round "5"]
[White "SirStrateg"]
[Black "vladislavkovalev"]
[Result "1-0"]
[WhiteElo "2648"]
[BlackElo "2864"]
[TimeControl "180+1"]
[EndTime "8:57:08 PDT"]
[Termination "SirStrateg won on time"]

1. d4 {[%clk 0:03:00.9]} 1... Nf6 {[%clk 0:02:58.9]} 2. Bf4 {[%clk 0:03:00.6]}
2... e6 {[%clk 0:02:56.9]} 3. e3 {[%clk 0:03:01]} 3... d5 {[%clk 0:02:56.5]} 4.
Nf3 {[%clk 0:02:58.7]} 4... c5 {[%clk 0:02:57]} 5. c3 {[%clk 0:02:58.8]} 5...
Nc6 {[%clk 0:02:56.7]} 6. Nbd2 {[%clk 0:02:59]} 6... cxd4 {[%clk 0:02:57.1]} 7.
exd4 {[%clk 0:02:58.8]} 7... Nh5 {[%clk 0:02:57.7]} 8. Bg5 {[%clk 0:02:57.3]}
8... f6 {[%clk 0:02:47.1]} 9. Bh4 {[%clk 0:02:57.6]} 9... Bd6 {[%clk 0:02:43.9]}
10. Bg3 {[%clk 0:02:48.8]} 10... Nf4 {[%clk 0:02:39.8]} 11. Bxf4 {[%clk
0:02:24.1]} 11... Bxf4 {[%clk 0:02:40.7]} 12. g3 {[%clk 0:02:24.5]} 12... Bd6
{[%clk 0:02:38.3]} 13. Bg2 {[%clk 0:02:22]} 13... O-O {[%clk 0:02:37.8]} 14. Qb3
{[%clk 0:02:13.7]} 14... Na5 {[%clk 0:02:34.8]} 15. Qc2 {[%clk 0:02:11.4]} 15...
e5 {[%clk 0:02:18.4]} 16. dxe5 {[%clk 0:02:11.1]} 16... fxe5 {[%clk 0:02:19.3]}
17. O-O {[%clk 0:02:10.7]} 17... Kh8 {[%clk 0:02:12.4]} 18. Nb3 {[%clk
0:02:02.4]} 18... Nc6 {[%clk 0:02:04.6]} 19. Rae1 {[%clk 0:01:53.7]} 19... Bg4
{[%clk 0:01:41.6]} 20. Nfd2 {[%clk 0:01:50.1]} 20... Bc7 {[%clk 0:01:35.1]} 21.
Qd3 {[%clk 0:01:26.1]} 21... e4 {[%clk 0:01:31]} 22. Qe3 {[%clk 0:01:26]} 22...
Bb6 {[%clk 0:01:30.7]} 23. Nd4 {[%clk 0:01:24.8]} 23... Nxd4 {[%clk 0:01:21.1]}
24. cxd4 {[%clk 0:01:25.1]} 24... Qf6 {[%clk 0:01:17.9]} 25. Nb3 {[%clk
0:01:25.1]} 25... Rac8 {[%clk 0:01:16.4]} 26. Rc1 {[%clk 0:01:17.5]} 26... h6
{[%clk 0:01:02.3]} 27. Rc3 {[%clk 0:01:11.8]} 27... Rxc3 {[%clk 0:01:00.6]} 28.
bxc3 {[%clk 0:01:10.1]} 28... Rc8 {[%clk 0:01:00.9]} 29. f3 {[%clk 0:01:06.3]}
29... exf3 {[%clk 0:00:56.1]} 30. Bxf3 {[%clk 0:01:06.7]} 30... Bxf3 {[%clk
0:00:56.5]} 31. Rxf3 {[%clk 0:01:06.2]} 31... Qg6 {[%clk 0:00:54.9]} 32. Qd3
{[%clk 0:01:02.4]} 32... Qxd3 {[%clk 0:00:43.4]} 33. Rxd3 {[%clk 0:01:02.6]}
33... a5 {[%clk 0:00:44.3]} 34. Kf2 {[%clk 0:00:52.3]} 34... a4 {[%clk
0:00:44.4]} 35. Nc1 {[%clk 0:00:50.3]} 35... Ba5 {[%clk 0:00:42]} 36. Ne2 {[%clk
0:00:48.1]} 36... Kg8 {[%clk 0:00:39.3]} 37. Ke3 {[%clk 0:00:45.5]} 37... b5
{[%clk 0:00:26.2]} 38. Kd2 {[%clk 0:00:39.2]} 38... b4 {[%clk 0:00:14.3]} 39.
cxb4 {[%clk 0:00:39.4]} 39... Bxb4+ {[%clk 0:00:15.2]} 40. Kd1 {[%clk
0:00:35.6]} 40... g5 {[%clk 0:00:15.7]} 41. g4 {[%clk 0:00:31.8]} 41... Rf8
{[%clk 0:00:15.2]} 42. h3 {[%clk 0:00:20.8]} 42... Rf1+ {[%clk 0:00:14.4]} 43.
Kc2 {[%clk 0:00:20.7]} 43... Rf2 {[%clk 0:00:10.4]} 44. Re3 {[%clk 0:00:19.5]}
44... Kf7 {[%clk 0:00:08.3]} 45. Kd3 {[%clk 0:00:17.7]} 45... Rf1 {[%clk
0:00:08.8]} 46. Ng3 {[%clk 0:00:18]} 46... Ra1 {[%clk 0:00:07.2]} 47. Re2 {[%clk
0:00:18.3]} 47... Rd1+ {[%clk 0:00:04.4]} 48. Ke3 {[%clk 0:00:18.1]} 48... Bd6
{[%clk 0:00:04.4]} 49. Nf5 {[%clk 0:00:18.4]} 49... Bf4+ {[%clk 0:00:05.1]} 50.
Kf3 {[%clk 0:00:18.8]} 50... Rh1 {[%clk 0:00:02.3]} 51. h4 {[%clk 0:00:17.6]}
51... Rh3+ {[%clk 0:00:02.2]} 52. Kg2 {[%clk 0:00:18.1]} 52... Rh2+ {[%clk
0:00:01.3]} 53. Kf3 {[%clk 0:00:18.7]} 53... Rh3+ {[%clk 0:00:01.8]} 54. Kg2
{[%clk 0:00:16.4]} 54... Rh2+ {[%clk 0:00:02.4]} 55. Kf3 {[%clk 0:00:14.5]}
55... gxh4 {[%clk 0:00:02.1]} 56. Rxh2 {[%clk 0:00:14]} 56... Bxh2 {[%clk
0:00:03]} 57. Nxh4 {[%clk 0:00:13.4]} 57... Kf6 {[%clk 0:00:03.7]} 58. Nf5
{[%clk 0:00:12.9]} 58... h5 {[%clk 0:00:04.3]} 59. Ne3 {[%clk 0:00:10.4]} 59...
hxg4+ {[%clk 0:00:02.7]} 60. Nxg4+ {[%clk 0:00:10.8]} 60... Kf5 {[%clk
0:00:02.6]} 61. Nxh2 {[%clk 0:00:11.3]} 1-0

[Event "Early-Titled-Tuesday-Blitz-April-16-2024"]
[Site "Chess.com"]
[Date "2024.04.16"]
[Round "5"]
[White "LeoWin2012"]
[Black "Pelusiansky"]
[Result "0-1"]
[WhiteElo "2307"]
[BlackElo "2544"]
[TimeControl "180+1"]
[EndTime "8:57:08 PDT"]
[Termination "Pelusiansky won by checkmate"]

1. c4 {[%clk 0:02:57.1]} 1... Nf6 {[%clk 0:02:56.2]} 2. Nc3 {[%clk 0:02:55.7]}
2... e6 {[%clk 0:02:55.6]} 3. g3 {[%clk 0:02:54.4]} 3... d5 {[%clk 0:02:55.1]}
4. cxd5 {[%clk 0:02:54.4]} 4... exd5 {[%clk 0:02:55.6]} 5. Bg2 {[%clk
0:02:53.6]} 5... c6 {[%clk 0:02:54.4]} 6. d3 {[%clk 0:02:53.5]} 6... d4 {[%clk
0:02:47.2]} 7. Ne4 {[%clk 0:02:52.8]} 7... Nxe4 {[%clk 0:02:36.7]} 8. Bxe4
{[%clk 0:02:51.6]} 8... Nd7 {[%clk 0:02:36.4]} 9. Bg2 {[%clk 0:02:49.7]} 9...
Bb4+ {[%clk 0:02:25]} 10. Bd2 {[%clk 0:02:49.2]} 10... Qb6 {[%clk 0:02:25.5]}
11. Nf3 {[%clk 0:02:47.5]} 11... O-O {[%clk 0:02:24.9]} 12. Bxb4 {[%clk
0:02:46.6]} 12... Qxb4+ {[%clk 0:02:24.9]} 13. Qd2 {[%clk 0:02:47]} 13... Qd6
{[%clk 0:02:22.9]} 14. O-O {[%clk 0:02:44.4]} 14... Re8 {[%clk 0:02:17.4]} 15.
Rfe1 {[%clk 0:02:43.1]} 15... c5 {[%clk 0:02:08.9]} 16. Rac1 {[%clk 0:02:38.1]}
16... Rb8 {[%clk 0:02:05.3]} 17. Qc2 {[%clk 0:02:32.3]} 17... b6 {[%clk
0:02:03.4]} 18. Nd2 {[%clk 0:02:32.1]} 18... Ne5 {[%clk 0:01:55.8]} 19. Nc4
{[%clk 0:02:27.7]} 19... Nxc4 {[%clk 0:01:55.2]} 20. Qxc4 {[%clk 0:02:26.9]}
20... Be6 {[%clk 0:01:54.8]} 21. Qa4 {[%clk 0:02:24.7]} 21... a5 {[%clk
0:01:51]} 22. a3 {[%clk 0:02:24.6]} 22... Bd7 {[%clk 0:01:48]} 23. Qc4 {[%clk
0:02:24.2]} 23... a4 {[%clk 0:01:44]} 24. Qd5 {[%clk 0:02:21.2]} 24... Qxd5
{[%clk 0:01:44.4]} 25. Bxd5 {[%clk 0:02:21.5]} 25... Kf8 {[%clk 0:01:45.3]} 26.
e3 {[%clk 0:02:06.5]} 26... Red8 {[%clk 0:01:27]} 27. exd4 {[%clk 0:01:53.3]}
27... Be8 {[%clk 0:01:26.9]} 28. Be4 {[%clk 0:01:49.1]} 28... Rxd4 {[%clk
0:01:24.5]} 29. Rc4 {[%clk 0:01:46.7]} 29... Rbd8 {[%clk 0:01:20.3]} 30. Rxd4
{[%clk 0:01:46.3]} 30... Rxd4 {[%clk 0:01:21.2]} 31. Rc1 {[%clk 0:01:43.1]}
31... g6 {[%clk 0:01:18.3]} 32. Rc4 {[%clk 0:01:40.9]} 32... Rd6 {[%clk
0:01:16.6]} 33. Rc3 {[%clk 0:01:33.9]} 33... Bb5 {[%clk 0:01:12.6]} 34. g4
{[%clk 0:01:24.3]} 34... Ke7 {[%clk 0:01:12.4]} 35. g5 {[%clk 0:01:22.8]} 35...
Ke6 {[%clk 0:01:11.6]} 36. Kg2 {[%clk 0:01:19.8]} 36... Ke5 {[%clk 0:01:10.9]}
37. Kf3 {[%clk 0:01:19.2]} 37... Kd4 {[%clk 0:01:09.2]} 38. h4 {[%clk
0:00:57.3]} 38... Re6 {[%clk 0:01:05.5]} 39. Kg3 {[%clk 0:00:42.3]} 39... f5
{[%clk 0:01:02.5]} 40. gxf6 {[%clk 0:00:41.3]} 40... Rxf6 {[%clk 0:01:02.9]} 41.
f3 {[%clk 0:00:41.2]} 41... Ba6 {[%clk 0:00:57.8]} 42. Kg4 {[%clk 0:00:41]}
42... h6 {[%clk 0:00:54.8]} 43. Kg3 {[%clk 0:00:33.2]} 43... b5 {[%clk
0:00:54.3]} 44. Kg4 {[%clk 0:00:28.4]} 44... Bc8+ {[%clk 0:00:53.7]} 45. Kg3
{[%clk 0:00:28.5]} 45... Be6 {[%clk 0:00:54.4]} 46. Rc1 {[%clk 0:00:25.3]} 46...
Bd5 {[%clk 0:00:51.2]} 47. Rd1 {[%clk 0:00:18.6]} 47... Rb6 {[%clk 0:00:48.4]}
48. Re1 {[%clk 0:00:15.2]} 48... Bf7 {[%clk 0:00:39.5]} 49. f4 {[%clk
0:00:13.9]} 49... b4 {[%clk 0:00:37.2]} 50. axb4 {[%clk 0:00:12.5]} 50... cxb4
{[%clk 0:00:35.8]} 51. Ra1 {[%clk 0:00:12.5]} 51... Ra6 {[%clk 0:00:34]} 52. h5
{[%clk 0:00:07.3]} 52... gxh5 {[%clk 0:00:33.1]} 53. f5 {[%clk 0:00:07.4]} 53...
a3 {[%clk 0:00:33.3]} 54. bxa3 {[%clk 0:00:07.3]} 54... Rxa3 {[%clk 0:00:29.8]}
55. Rb1 {[%clk 0:00:06.7]} 55... b3 {[%clk 0:00:29.8]} 56. f6 {[%clk 0:00:05.1]}
56... Ra6 {[%clk 0:00:28.6]} 57. Kh4 {[%clk 0:00:04]} 57... Rxf6 {[%clk
0:00:28.2]} 58. Bb7 {[%clk 0:00:03.7]} 58... Kxd3 {[%clk 0:00:26.5]} 59. Ba6+
{[%clk 0:00:03.5]} 59... Kc2 {[%clk 0:00:26.6]} 60. Re1 {[%clk 0:00:03.1]} 60...
Rxa6 {[%clk 0:00:26.5]} 61. Re2+ {[%clk 0:00:03.3]} 61... Kd3 {[%clk 0:00:26.8]}
62. Re1 {[%clk 0:00:03.6]} 62... b2 {[%clk 0:00:26.9]} 63. Rb1 {[%clk
0:00:03.4]} 63... Kc2 {[%clk 0:00:26.3]} 64. Rf1 {[%clk 0:00:04.3]} 64... b1=Q
{[%clk 0:00:26.4]} 65. Rxb1 {[%clk 0:00:05.2]} 65... Kxb1 {[%clk 0:00:26.7]} 66.
Kg3 {[%clk 0:00:05.8]} 66... Rg6+ {[%clk 0:00:26.6]} 67. Kh4 {[%clk 0:00:06.7]}
67... Rg4+ {[%clk 0:00:26.7]} 68. Kh3 {[%clk 0:00:07.4]} 68... Be6 {[%clk
0:00:26]} 69. Kh2 {[%clk 0:00:07.6]} 69... Kc2 {[%clk 0:00:25.6]} 70. Kh3 {[%clk
0:00:08.5]} 70... Kd3 {[%clk 0:00:26.2]} 71. Kh2 {[%clk 0:00:09.3]} 71... Ke3
{[%clk 0:00:27.1]} 72. Kh3 {[%clk 0:00:10.2]} 72... Kf2 {[%clk 0:00:27]} 73. Kh2
{[%clk 0:00:11.1]} 73... Rh4# {[%clk 0:00:27.7]} 0-1

[Event "Early-Titled-Tuesday-Blitz-April-16-2024"]
[Site "Chess.com"]
[Date "2024.04.16"]
[Round "5"]
[White "CarlosjPineror"]
[Black "kacperkarwowski"]
[Result "1-0"]
[WhiteElo "2728"]
[BlackElo "2514"]
[TimeControl "180+1"]
[EndTime "8:57:09 PDT"]
[Termination "CarlosjPineror won on time"]

1. e4 {[%clk 0:03:00.9]} 1... c5 {[%clk 0:02:56.7]} 2. Nf3 {[%clk 0:03:00.5]}
2... e6 {[%clk 0:02:50.3]} 3. d4 {[%clk 0:02:59.6]} 3... cxd4 {[%clk 0:02:49.7]}
4. Nxd4 {[%clk 0:03:00.5]} 4... Nf6 {[%clk 0:02:50.2]} 5. Bd3 {[%clk 0:02:58.7]}
5... Nc6 {[%clk 0:02:47]} 6. Nxc6 {[%clk 0:02:58.5]} 6... dxc6 {[%clk
0:02:40.3]} 7. O-O {[%clk 0:02:56.6]} 7... e5 {[%clk 0:02:37.8]} 8. Nc3 {[%clk
0:02:52.9]} 8... Be6 {[%clk 0:02:36.6]} 9. Qe2 {[%clk 0:02:52.3]} 9... Be7
{[%clk 0:02:21.5]} 10. Be3 {[%clk 0:02:33.3]} 10... O-O {[%clk 0:01:58]} 11. f3
{[%clk 0:02:32.6]} 11... Qa5 {[%clk 0:01:50.2]} 12. Qf2 {[%clk 0:02:27.8]} 12...
Nd7 {[%clk 0:01:40.8]} 13. a3 {[%clk 0:02:24.1]} 13... Bc5 {[%clk 0:01:36.7]}
14. b4 {[%clk 0:02:20.9]} 14... Bxe3 {[%clk 0:01:36.7]} 15. Qxe3 {[%clk
0:02:21]} 15... Qb6 {[%clk 0:01:34.9]} 16. Qxb6 {[%clk 0:02:15.2]} 16... Nxb6
{[%clk 0:01:19.1]} 17. a4 {[%clk 0:02:14]} 17... a6 {[%clk 0:01:10.6]} 18. a5
{[%clk 0:02:11]} 18... Nc8 {[%clk 0:00:46.5]} 19. Na4 {[%clk 0:02:10.5]} 19...
Nd6 {[%clk 0:00:45.1]} 20. Nc5 {[%clk 0:02:09.7]} 20... Rad8 {[%clk 0:00:45.1]}
21. Rfd1 {[%clk 0:02:09.2]} 21... Bc8 {[%clk 0:00:44.8]} 22. c3 {[%clk
0:02:00.7]} 22... Rfe8 {[%clk 0:00:43.4]} 23. Kf2 {[%clk 0:01:57.6]} 23... Kf8
{[%clk 0:00:42.4]} 24. Rd2 {[%clk 0:01:58.1]} 24... Ke7 {[%clk 0:00:41.7]} 25.
Rad1 {[%clk 0:01:58.9]} 25... f6 {[%clk 0:00:32.6]} 26. Bc2 {[%clk 0:01:58.4]}
26... Nf7 {[%clk 0:00:31.4]} 27. Bb3 {[%clk 0:01:55.1]} 27... Rxd2+ {[%clk
0:00:25.9]} 28. Rxd2 {[%clk 0:01:56]} 28... Nd6 {[%clk 0:00:20.6]} 29. Na4
{[%clk 0:01:43.8]} 29... Rd8 {[%clk 0:00:19.7]} 30. Ke2 {[%clk 0:01:43]} 30...
Nb5 {[%clk 0:00:18.7]} 31. Rxd8 {[%clk 0:01:41.1]} 31... Kxd8 {[%clk 0:00:18.5]}
32. Kd2 {[%clk 0:01:39.6]} 32... Ke7 {[%clk 0:00:18.2]} 33. Nc5 {[%clk
0:01:40.2]} 33... Nd6 {[%clk 0:00:17.3]} 34. Bg8 {[%clk 0:01:36.6]} 34... h6
{[%clk 0:00:17.2]} 35. g4 {[%clk 0:01:34.9]} 35... Ne8 {[%clk 0:00:16.2]} 36. h4
{[%clk 0:01:34.1]} 36... Nd6 {[%clk 0:00:13.5]} 37. h5 {[%clk 0:01:32.4]} 37...
Ne8 {[%clk 0:00:07.1]} 38. Bc4 {[%clk 0:01:29.4]} 38... Nc7 {[%clk 0:00:06.9]}
39. Kc2 {[%clk 0:01:26.5]} 39... Kd6 {[%clk 0:00:07.4]} 40. Kb2 {[%clk
0:01:21.2]} 40... Ke7 {[%clk 0:00:07.8]} 41. Be2 {[%clk 0:01:16.7]} 41... Kd6
{[%clk 0:00:08.2]} 42. c4 {[%clk 0:01:16.8]} 42... Ne6 {[%clk 0:00:06.4]} 43.
Na4 {[%clk 0:01:04.7]} 43... Nd4 {[%clk 0:00:05.5]} 44. Bd1 {[%clk 0:01:05.4]}
44... Kc7 {[%clk 0:00:04.9]} 45. Kc3 {[%clk 0:01:04.1]} 45... Ne6 {[%clk
0:00:03.4]} 46. Kd3 {[%clk 0:01:01.9]} 46... Nf4+ {[%clk 0:00:03.5]} 47. Ke3
{[%clk 0:01:02.5]} 47... Be6 {[%clk 0:00:03.6]} 48. Nb2 {[%clk 0:01:01.5]} 48...
Bf7 {[%clk 0:00:02.7]} 49. Be2 {[%clk 0:01:00.7]} 49... Be6 {[%clk 0:00:03.1]}
50. Bf1 {[%clk 0:00:58.1]} 50... Bf7 {[%clk 0:00:02.6]} 51. b5 {[%clk 0:00:58]}
51... cxb5 {[%clk 0:00:02.7]} 52. cxb5 {[%clk 0:00:58.9]} 52... Be8 {[%clk
0:00:02.5]} 53. bxa6 {[%clk 0:00:57.1]} 53... bxa6 {[%clk 0:00:03.4]} 54. Bxa6
{[%clk 0:00:57]} 54... Ne6 {[%clk 0:00:04.3]} 55. Bf1 {[%clk 0:00:53.9]} 55...
Nc5 {[%clk 0:00:04.2]} 56. Nd3 {[%clk 0:00:45.1]} 56... Ne6 {[%clk 0:00:02.2]}
57. Nb4 {[%clk 0:00:44.4]} 57... Bc6 {[%clk 0:00:02.7]} 58. Bc4 {[%clk
0:00:36.1]} 58... Nc5 {[%clk 0:00:03]} 59. Bd5 {[%clk 0:00:34.4]} 59... Bb5
{[%clk 0:00:02.4]} 60. Bg8 {[%clk 0:00:29.7]} 60... Nb7 {[%clk 0:00:02.3]} 61.
Nd5+ {[%clk 0:00:30.3]} 61... Kd8 {[%clk 0:00:02.2]} 62. f4 {[%clk 0:00:22.8]}
62... Ba6 {[%clk 0:00:02.5]} 63. fxe5 {[%clk 0:00:21]} 63... fxe5 {[%clk
0:00:03.4]} 64. Nb4 {[%clk 0:00:21.1]} 64... Bb5 {[%clk 0:00:03.3]} 65. a6
{[%clk 0:00:19.3]} 1-0

[Event "Early-Titled-Tuesday-Blitz-April-16-2024"]
[Site "Chess.com"]
[Date "2024.04.16"]
[Round "5"]
[White "MarcoRiehle"]
[Black "LevonAronian"]
[Result "0-1"]
[WhiteElo "2730"]
[BlackElo "3072"]
[TimeControl "180+1"]
[EndTime "8:57:22 PDT"]
[Termination "LevonAronian won by checkmate"]

1. e4 {[%clk 0:03:00.9]} 1... c5 {[%clk 0:02:48.8]} 2. a3 {[%clk 0:02:54.9]}
2... e6 {[%clk 0:02:46.6]} 3. b4 {[%clk 0:02:55.1]} 3... d5 {[%clk 0:02:45]} 4.
exd5 {[%clk 0:02:55.1]} 4... exd5 {[%clk 0:02:44.8]} 5. Nf3 {[%clk 0:02:55.6]}
5... Nf6 {[%clk 0:02:44.7]} 6. c3 {[%clk 0:02:54.6]} 6... Nc6 {[%clk 0:02:39]}
7. d4 {[%clk 0:02:53.2]} 7... cxd4 {[%clk 0:02:35.5]} 8. Nxd4 {[%clk 0:02:52.9]}
8... Bd6 {[%clk 0:02:34.1]} 9. Be2 {[%clk 0:02:50.8]} 9... O-O {[%clk
0:02:32.7]} 10. O-O {[%clk 0:02:51.2]} 10... Re8 {[%clk 0:02:30.4]} 11. Bg5
{[%clk 0:02:44.2]} 11... Nxd4 {[%clk 0:01:56.8]} 12. cxd4 {[%clk 0:02:43.8]}
12... Bf5 {[%clk 0:01:44.6]} 13. Bf3 {[%clk 0:02:38.6]} 13... Rc8 {[%clk
0:01:39.7]} 14. h3 {[%clk 0:02:27.3]} 14... Bb8 {[%clk 0:01:30.4]} 15. Bh4
{[%clk 0:02:13.7]} 15... h6 {[%clk 0:01:26.5]} 16. Ra2 {[%clk 0:01:55.1]} 16...
Qc7 {[%clk 0:01:20]} 17. Bg3 {[%clk 0:01:53.3]} 17... Qc4 {[%clk 0:01:19.8]} 18.
Re2 {[%clk 0:01:41.6]} 18... Bxg3 {[%clk 0:01:18.4]} 19. fxg3 {[%clk 0:01:36.9]}
19... Bxb1 {[%clk 0:01:17.3]} 20. Rxe8+ {[%clk 0:01:35.9]} 20... Rxe8 {[%clk
0:01:17.7]} 21. Qxb1 {[%clk 0:01:36.1]} 21... Qxd4+ {[%clk 0:01:17.9]} 22. Kh2
{[%clk 0:01:36.4]} 22... Qc3 {[%clk 0:01:16]} 23. a4 {[%clk 0:01:28.4]} 23... b6
{[%clk 0:01:07.9]} 24. Rc1 {[%clk 0:01:21.2]} 24... Qe5 {[%clk 0:01:06.6]} 25.
Qd3 {[%clk 0:01:15.3]} 25... Ne4 {[%clk 0:01:06.2]} 26. Bxe4 {[%clk 0:01:15]}
26... dxe4 {[%clk 0:01:06.1]} 27. Qe3 {[%clk 0:01:14.3]} 27... Rd8 {[%clk
0:01:05.4]} 28. Re1 {[%clk 0:00:53.7]} 28... Rd4 {[%clk 0:01:04.1]} 29. Qc3
{[%clk 0:00:49.5]} 29... f6 {[%clk 0:00:48.4]} 30. a5 {[%clk 0:00:47.3]} 30...
Kh7 {[%clk 0:00:42.8]} 31. axb6 {[%clk 0:00:46.7]} 31... axb6 {[%clk 0:00:42.9]}
32. Re3 {[%clk 0:00:45.3]} 32... b5 {[%clk 0:00:37.9]} 33. h4 {[%clk 0:00:42]}
33... Rc4 {[%clk 0:00:37.3]} 34. Qe1 {[%clk 0:00:41.2]} 34... Qd4 {[%clk
0:00:34.9]} 35. Qf2 {[%clk 0:00:38]} 35... Qd5 {[%clk 0:00:32.7]} 36. Qe1 {[%clk
0:00:35.6]} 36... f5 {[%clk 0:00:28.5]} 37. Re2 {[%clk 0:00:32.6]} 37... Qd6
{[%clk 0:00:26.8]} 38. Qf2 {[%clk 0:00:30.6]} 38... Qe5 {[%clk 0:00:25.7]} 39.
Qe1 {[%clk 0:00:30.2]} 39... Rc3 {[%clk 0:00:25.2]} 40. Re3 {[%clk 0:00:29.6]}
40... Rxe3 {[%clk 0:00:24.6]} 41. Qxe3 {[%clk 0:00:30.5]} 41... h5 {[%clk
0:00:22.9]} 42. Qg5 {[%clk 0:00:27.8]} 42... g6 {[%clk 0:00:22.9]} 43. Qe3
{[%clk 0:00:28.2]} 43... Kg7 {[%clk 0:00:22]} 44. Qa7+ {[%clk 0:00:27.9]} 44...
Kf6 {[%clk 0:00:22]} 45. Qb6+ {[%clk 0:00:28.5]} 45... Kf7 {[%clk 0:00:22.1]}
46. Qa7+ {[%clk 0:00:28.2]} 46... Kg8 {[%clk 0:00:20.1]} 47. Qe3 {[%clk
0:00:28.7]} 47... Qe7 {[%clk 0:00:16.2]} 48. Qb6 {[%clk 0:00:27.3]} 48... Qe8
{[%clk 0:00:07.9]} 49. Kg1 {[%clk 0:00:23.6]} 49... Kf7 {[%clk 0:00:06.1]} 50.
Kf2 {[%clk 0:00:22.9]} 50... Qd7 {[%clk 0:00:06.2]} 51. Ke3 {[%clk 0:00:15.9]}
51... Qd3+ {[%clk 0:00:05.5]} 52. Kf4 {[%clk 0:00:16.6]} 52... Qd2+ {[%clk
0:00:05.6]} 53. Ke5 {[%clk 0:00:16.9]} 53... Qc3+ {[%clk 0:00:06]} 54. Kf4
{[%clk 0:00:17.2]} 54... Qc1+ {[%clk 0:00:06.1]} 55. Ke5 {[%clk 0:00:17.3]}
55... Qb2+ {[%clk 0:00:05.7]} 56. Kf4 {[%clk 0:00:17.4]} 56... Qxb4 {[%clk
0:00:06.1]} 57. Qc7+ {[%clk 0:00:16.7]} 57... Qe7 {[%clk 0:00:06.2]} 58. Qc6
{[%clk 0:00:15.8]} 58... b4 {[%clk 0:00:06.6]} 59. Qd5+ {[%clk 0:00:15.6]} 59...
Kg7 {[%clk 0:00:07.1]} 60. Qd4+ {[%clk 0:00:15.6]} 60... Kh7 {[%clk 0:00:07]}
61. Ke3 {[%clk 0:00:14.9]} 61... Qb7 {[%clk 0:00:06.8]} 62. g4 {[%clk
0:00:13.5]} 62... fxg4 {[%clk 0:00:06.7]} 63. Kf4 {[%clk 0:00:13.3]} 63... b3
{[%clk 0:00:07]} 64. Qb2 {[%clk 0:00:13.1]} 64... Qb4 {[%clk 0:00:06]} 65. g3
{[%clk 0:00:12.6]} 65... e3+ {[%clk 0:00:05.7]} 66. Kxe3 {[%clk 0:00:12.1]}
66... Qe1+ {[%clk 0:00:05.8]} 67. Kf4 {[%clk 0:00:11]} 67... Qf1+ {[%clk
0:00:06.3]} 68. Kg5 {[%clk 0:00:10.9]} 68... Qf5# {[%clk 0:00:06.2]} 0-1